[Event "US Masters 2022"]
[Site "Charlotte"]
[Date "2022.11.25"]
[Round "4.10"]
[White "Chasin, Nico"]
[Black "Cruz, Cristhian"]
[Result "0-1"]
[ECO "C01"]
[WhiteElo "2429"]
[BlackElo "2552"]
[Annotator "TA"]
[PlyCount "88"]
[EventDate "2022.11.23"]
[EventType "swiss"]
[EventCountry "USA"]
[SourceTitle "playchess.com"]
[Source "ChessBase"]
[SourceQuality "1"]
[TimeControl "5400+30"]

{[%evp 17,88,0,0,-1,0,-13,2,0,0,-20,-18,-37,-46,-47,-47,-55,-56,-60,-58,-59,-53,-66,-16,-17,-16,-25,-18,-18,-18,-18,-20,-51,-51,-51,-51,-44,-34,-52,-29,-54,-55,-58,-58,-58,-55,-58,-46,-81,-80,-79,-62,-101,-95,-95,-95,-164,-164,-186,-164,-186,-186,-186,-186,-186,-186,-5112,-4813,-29971,-29972,-29972,-29973,-29981,-29974]} 1. d4 {[%emt 0:14:36]} e6 {[%emt 0:01:59]} 2. e4 {[%emt 0:00:29]} d5 {[%emt 0:00:32]} 3. exd5 {[%emt 0:00:16]} exd5 {[%emt 0:00:11]} 4. Nf3 {[%emt 0:01:41]} Nc6 {[%emt 0:01:52]} 5. Nc3 {[%emt 0:06:04]} Bb4 {[%emt 0:06:39]} 6. a3 {[%emt 0:01:12]} Bxc3+ {[%emt 0:01:19]} 7. bxc3 {[%emt 0:00:07]} Nge7 {[%emt 0:00:09]} 8. Bd3 {[%emt 0:00:26]} Bf5 {[%emt 0:02:40]} 9. O-O {[%emt 0:00:07]} O-O {[%emt 0:00:26]} 10. Rb1 {[%emt 0:02:17] C01: French: Exchange Variation.} b6 {[%emt 0:05:10]} 11. Bf4 {[%emt 0:09:03]} Qd7 {[%emt 0:05:05] [#]} (11... Bxd3 {simplifies} 12. cxd3 Qd7 13. Re1 Rae8) 12. Bb5 $146 {[%emt 0:08:53] The position is equal.} ({Predecessor:} 12. Re1 Bxd3 13. Qxd3 Ng6 14. Bg3 Na5 15. Nd2 Rad8 16. h4 Ne7 17. Re2 Nf5 18. Rbe1 {½-½ (56) Zuyev,I (2348)-Schramm,C (2340) Frankfurt 2011}) 12... Ng6 {[%emt 0:03:37]} 13. Ne5 {[%emt 0:00:11]} Ngxe5 {[%emt 0:00:07]} 14. Bxe5 {[%emt 0:00:03]} a6 {[%emt 0:00:27][%cal Ba7a6,Ba6a5,Ba5a4][%mdl 32]} 15. Bxc6 {[%emt 0:02:00]} Qxc6 {[%emt 0:00:13]} 16. Qd2 {[%emt 0:00:03]} Rfe8 {[%emt 0:28:24]} 17. Rfe1 {[%emt 0:01:40]} h6 {[%emt 0:00:49]} 18. h3 {[%emt 0:07:10]} a5 {[%emt 0:02:43]} 19. Bg3 {[%emt 0:03:49]} Qa4 {[%emt 0:07:24] Black is more active.} ({Black should try} 19... Bg6 $15) 20. Bxc7 $11 {[%emt 0:05:01]} Qxa3 {[%emt 0:02:34]} 21. Bxb6 {[%emt 0:01:45]} Rxe1+ {[%emt 0:01:57]} (21... a4 {seems wilder.} 22. Bc5 Qa2 23. Rb7 Bg6) 22. Qxe1 {[%emt 0:01:08]} a4 {[%emt 0:00:33][%cal Oa3a2] White must now prevent ...Qa2!} 23. Bc5 {[%emt 0:00:12]} Qa2 {[%emt 0:01:38]} 24. Qc1 {[%emt 0:00:53]} (24. Rb7 {is interesting.} Qxc2 25. Qe5 Be6 26. Rb8+) 24... Qxc2 {[%emt 0:01:00]} (24... Bxc2 $2 25. Rb2 $18) 25. Qxc2 {[%emt 0:03:44]} Bxc2 $15 {[%emt 0:00:20][%mdl 4096] Endgame KRB-KRB} 26. Ra1 {[%emt 0:02:33]} Re8 {[%emt 0:04:31]} 27. Kf1 {[%emt 0:00:01]} Bb3 {[%emt 0:02:54]} 28. Bb4 {[%emt 0:01:12]} g5 {[%emt 0:02:33]} 29. f3 {[%emt 0:00:51]} f5 {[%emt 0:13:20]} 30. Kf2 {[%emt 0:07:03]} Kf7 {[%emt 0:00:14]} 31. g3 {[%emt 0:01:54]} Kf6 {[%emt 0:01:48]} 32. Re1 {[%emt 0:03:41]} Rxe1 {[%emt 0:00:38]} 33. Kxe1 $17 {[%emt 0:00:02] KB-KB} h5 {[%emt 0:00:44][%cal Bh6h5,Bh5h4][%mdl 32]} 34. f4 {[%emt 0:17:23]} gxf4 {[%emt 0:00:14]} 35. gxf4 {[%emt 0:00:00][%cal Oc3c4]} h4 {[%emt 0:00:21]} 36. Kd2 {[%emt 0:00:00]} (36. c4 $17) 36... Bc4 $19 {[%emt 0:00:11]} 37. Ke1 {[%emt 0:00:00]} Ke6 {[%emt 0:00:18]} 38. Kf2 {[%emt 0:00:00]} Bd3 {[%emt 0:00:27] [#] Strongly threatening ...Be4.} 39. Ba3 {[%emt 0:00:00]} Kd7 {[%emt 0:00:29] Threatens to win with ...Kc6.} 40. Bb4 {[%emt 0:00:00]} Be4 {[%emt 0:00:24] Prevents c4. And now ...Kc6 would win.} 41. Ba3 $2 {[%emt 0:00:00]} (41. Ke3) 41... Kc6 {[%emt 0:00:21] ( -> ...Kb5)} 42. Ke3 {[%emt 0:00:00] [#]} Kb5 $1 {[%emt 0:00:11] Black mates.} 43. Kd2 {[%emt 0:00:00]} Kc4 {[%emt 0:00:06]} 44. Be7 {[%emt 0:00:00]} Kb3 {[%emt 0:00:13] Weighted Error Value: White=0.44/Black=0.04 (flawless)} 0-1

[Event "US Masters 2022"]
[Site "Charlotte"]
[Date "2022.11.25"]
[Round "4.11"]
[White "Schitco, Ivan"]
[Black "Bodek, Michael"]
[Result "1/2-1/2"]
[ECO "A19"]
[WhiteElo "2532"]
[BlackElo "2427"]
[Annotator "TA"]
[PlyCount "101"]
[EventDate "2022.11.23"]
[EventType "swiss"]
[EventCountry "USA"]
[SourceTitle "playchess.com"]
[Source "ChessBase"]
[SourceQuality "1"]
[TimeControl "5400+30"]

{[%evp 20,101,0,0,9,8,20,14,19,12,23,26,26,27,18,15,42,23,22,21,18,18,38,34,39,22,72,0,0,-2,0,0,-2,-3,-3,0,0,-2,13,8,8,-6,0,0,-3,-3,0,-5,11,8,15,8,8,8,15,4,4,4,4,4,4,0,0,0,-4,-5,-6,-6,-6,-8,8,8,21,8,26,8,8,8,24,0,8,14,14,0]} 1. c4 {[%emt 0:01:55]} e6 {[%emt 0:00:27]} 2. Nc3 {[%emt 0:00:08]} Nf6 {[%emt 0:01:12]} 3. e4 {[%emt 0:00:16][%cal Be2e4,Be4e5][%mdl 32]} c5 {[%emt 0:00:15]} 4. e5 {[%emt 0:00:07]} Ng8 {[%emt 0:00:04]} 5. Nf3 {[%emt 0:00:09]} Nc6 {[%emt 0:00:15]} 6. d4 {[%emt 0:00:09]} cxd4 {[%emt 0:00:23]} 7. Nxd4 {[%emt 0:00:05]} Nxe5 {[%emt 0:00:42]} 8. Ndb5 {[%emt 0:00:06]} a6 {[%emt 0:00:23]} 9. Nd6+ {[%emt 0:00:05]} Bxd6 {[%emt 0:00:04]} 10. Qxd6 {[%emt 0:00:04]} f6 {[%emt 0:00:30]} 11. Be3 {[%emt 0:00:06][%cal Bc1e3,Be3b6,Bb6d8][%mdl 32]} Ne7 {[%emt 0:00:17] A19: English Opening: Flohr-Mikenas System with 3...c5.} 12. Bb6 {[%emt 0:00:05]} Nf5 {[%emt 0:00:09]} 13. Qb4 $1 {[%emt 0:00:04][%mdl 4] is more profitable than 13.Qc5 at the moment.} (13. Bxd8 {simplifies} Nxd6 14. Bc7 Ke7 15. c5) 13... Nc6 {[%emt 0:05:56]} 14. Qc5 {[%emt 0:00:24]} d6 {[%emt 0:01:13]} 15. Bxd8 {[%emt 0:00:06]} dxc5 {[%emt 0:00:06]} 16. Bb6 {[%emt 0:00:04]} Ne5 {[%emt 0:03:36]} 17. Bxc5 {[%emt 0:00:06]} g5 {[%emt 0:02:57]} 18. Be2 {[%emt 0:00:06]} (18. Ne4 $5 {[%cal Re4f6]}) 18... h5 {[%emt 0:02:33]} 19. O-O {[%emt 0:00:08]} Bd7 {[%emt 0:13:09]} 20. b4 {[%emt 0:00:07] [#]} Kf7 $146 {[%emt 0:05:15]} ({Predecessor:} 20... g4 21. Rfd1 Rc8 22. a4 a5 23. Nb5 axb4 24. Bxb4 Nxc4 25. Na7 Ra8 26. Bxc4 Rxa7 27. a5 Ra8 28. Rac1 Rc8 29. Ba3 Ne7 30. Rd6 Rc6 31. Rd2 {½-½ (31) Pepermans,T (2394)-Monacell,J (2407) LSS email 2013}) 21. a4 {[%emt 0:12:01]} Rac8 {[%emt 0:07:16]} 22. Ne4 {[%emt 0:04:37]} Ng6 {[%emt 0:10:06]} (22... Bc6 $11 {keeps the balance.} 23. Nd6+ Nxd6 24. Bxd6 Be4) 23. Rfe1 {[%emt 0:05:39]} (23. Rfd1 $16 Bc6 24. Nd6+ Nxd6 25. Bxd6 (25. Rxd6 Nf4 $14)) 23... Bc6 $11 {[%emt 0:05:04]} 24. Nd6+ {[%emt 0:03:56]} Nxd6 {[%emt 0:00:43]} 25. Bxd6 {[%emt 0:00:03]} Nh4 {[%emt 0:04:05]} 26. Bf1 {[%emt 0:03:37] A strong pair of Bishops.} Nf5 {[%emt 0:02:05] Prevents b5.} 27. Bc5 {[%emt 0:05:03]} a5 {[%emt 0:03:44]} 28. bxa5 {[%emt 0:04:40]} Bxa4 {[%emt 0:04:04][%mdl 64] [#]} 29. Bb6 {[%emt 0:01:52]} Bc6 {[%emt 0:28:27]} 30. Rad1 {[%emt 0:04:04]} Rhe8 {[%emt 0:00:00]} 31. Rd2 {[%emt 0:03:54]} g4 {[%emt 0:00:00]} 32. Rd3 {[%emt 0:08:12]} Re7 {[%emt 0:00:00]} 33. h3 {[%emt 0:06:37]} Rd7 {[%emt 0:00:00]} 34. Rxd7+ {[%emt 0:01:58]} Bxd7 {[%emt 0:00:00]} 35. Be2 {[%emt 0:06:32]} Rg8 {[%emt 0:00:00]} 36. hxg4 {[%emt 0:03:04]} hxg4 {[%emt 0:00:00]} 37. f3 {[%emt 0:00:39]} g3 {[%emt 0:00:00]} 38. Bd3 {[%emt 0:00:32]} Ne7 {[%emt 0:00:00]} 39. Bc7 {[%emt 0:01:22]} Bc6 {[%emt 0:00:00]} 40. Rb1 {[%emt 0:03:56]} e5 {[%emt 0:00:00]} 41. Be4 {[%emt 0:04:30]} Bxe4 {[%emt 0:00:00]} 42. fxe4 {[%emt 0:00:02][%mdl 4096] Endgame KRB-KRN} Rg4 {[%emt 0:00:00]} 43. Rxb7 {[%emt 0:01:02]} Rxe4 {[%emt 0:00:00][%cal Re4e1] [#]} 44. Kf1 {[%emt 0:01:17] Inhibits Re1+.} Nc6 {[%emt 0:00:00]} (44... Rxc4 $2 45. Bd8 Rf4+ 46. Ke2 (46. Kg1 Rd4 $17) 46... Rf2+ 47. Kd3 Rxg2 48. Rxe7+ Kf8 49. Re6 $18) 45. a6 {[%emt 0:03:25] With the idea a7.} Rf4+ {[%emt 0:00:00]} 46. Ke1 {[%emt 0:00:11]} (46. Ke2 {is interesting.} Ke6 47. a7 Rf2+ 48. Kd3) 46... Rxc4 {[%emt 0:00:49]} (46... Ke6 $5 {[%cal Rf4c4]}) 47. a7 {[%emt 0:02:08]} Nxa7 $1 {[%emt 0:00:07]} 48. Rxa7 {[%emt 0:00:04]} Kg6 {[%emt 0:02:12]} 49. Bd8 {[%emt 0:02:05]} f5 {[%emt 0:01:12]} 50. Ra6+ {[%emt 0:03:22]} Kh5 {[%emt 0:00:28]} 51. Ra5 {[%emt 0:02:03] Weighted Error Value: White=0.05 (flawless) /Black=0.07 (flawless)} 1/2-1/2

[Event "US Masters 2022"]
[Site "Charlotte"]
[Date "2022.11.25"]
[Round "4.12"]
[White "Hilby, Craig"]
[Black "Stremavicius, Titas"]
[Result "1/2-1/2"]
[ECO "A46"]
[WhiteElo "2411"]
[BlackElo "2527"]
[Annotator "TA"]
[PlyCount "51"]
[EventDate "2022.11.23"]
[EventType "swiss"]
[EventCountry "USA"]
[SourceTitle "playchess.com"]
[Source "ChessBase"]
[SourceQuality "1"]
[TimeControl "5400+30"]

{[%evp 9,51,3,10,0,13,26,20,10,27,0,40,26,26,10,39,46,60,66,57,65,63,51,61,66,60,64,72,52,373,365,339,157,151,22,20,12,65,55,51,54,59,58,67,0]} 1. d4 {[%emt 0:01:44]} d5 {[%emt 0:00:41]} 2. Nf3 {[%emt 0:00:08]} Nf6 {[%emt 0:00:16]} 3. g3 {[%emt 0:00:06]} e6 {[%emt 0:01:23]} 4. Bg2 {[%emt 0:00:53]} b5 {[%emt 0:00:12]} 5. O-O {[%emt 0:00:30]} Be7 {[%emt 0:01:59]} 6. a4 {[%emt 0:00:16] A46: 1 d4 Nf6 2 Nf3 e6: Torre, London and Colle Systems.} b4 {[%emt 0:00:08]} 7. c4 {[%emt 0:00:31]} bxc3 {[%emt 0:01:35]} 8. bxc3 {[%emt 0:00:59][%cal Oc3c4] The position is equal.} Ba6 {[%emt 0:06:27]} 9. Ne5 {[%emt 0:00:18]} Nfd7 {[%emt 0:00:57][%cal Bf6d7,Bd7b6,Bb6c4][%mdl 32]} 10. Nd3 $1 {[%emt 0:00:16]} O-O {[%emt 0:08:09]} 11. e4 {[%emt 0:01:30] [#]} Nb6 $146 {[%emt 0:04:43]} ({Predecessor:} 11... c6 12. a5 dxe4 13. Bxe4 Bc4 14. Nd2 Bd5 15. Nf4 Bxe4 16. Nxe4 Nf6 17. Qf3 Nxe4 18. Qxe4 {1-0 (35) Markos,J (2599)-Duda,J (2587) Ruzomberok 2014}) 12. Re1 {[%emt 0:04:32]} Bb7 {[%emt 0:16:10]} 13. a5 {[%emt 0:02:29]} Nc4 {[%emt 0:01:11]} 14. Qb3 $36 {[%emt 0:00:42][%mdl 2048] White has good play.} Ba6 {[%emt 0:08:36]} 15. Nb4 {[%emt 0:07:57]} Bxb4 {[%emt 0:00:48]} 16. cxb4 {[%emt 0:00:44]} Nc6 {[%emt 0:00:46]} 17. exd5 $1 {[%emt 0:09:13]} exd5 {[%emt 0:00:57] [#]} 18. Nc3 $1 {[%emt 0:00:07]} Rb8 $2 {[%emt 0:13:42][%mdl 8192]} (18... Nxd4 19. Qd1 Re8 20. Rxe8+ Qxe8 21. Bg5 $16 (21. Qxd4 Qe1+ 22. Bf1 Ne5 $11)) (18... Re8 $1 $14 19. Rxe8+ Qxe8) 19. Nxd5 $18 {[%emt 0:12:22]} ({Worse is} 19. Bxd5 Nxb4 20. Bxc4 Nd3 $11) 19... Nxd4 {[%emt 0:01:42] [#]} 20. Qd3 {[%emt 0:08:01]} (20. Qc3 $1 $18 {[%cal Rc3d4] is the precise move to win.} Nf5 21. Bf4) 20... Ne6 $16 {[%emt 0:04:55]} 21. Rd1 {[%emt 0:11:56] White has more active pieces.} (21. f4 $16 {Threatens to win with f5.} Nb6 22. Qxa6 Nxd5 23. Qxa7 (23. Rxe6 Nxb4 24. Qc4 Qd1+ 25. Bf1 fxe6 $15) 23... Nxb4 24. Be3) 21... c6 $11 {[%emt 0:03:42]} 22. Nf4 {[%emt 0:00:18]} Qf6 {[%emt 0:00:06]} (22... Qxd3 $11 23. Rxd3 Rxb4) 23. Nxe6 $1 $14 {[%emt 0:04:13] White is slightly better.} fxe6 {[%emt 0:03:32]} 24. Be3 {[%emt 0:02:28] Chess con chili.} Nxe3 {[%emt 0:01:31]} 25. Qxe3 {[%emt 0:00:10]} Rxb4 {[%emt 0:00:08]} 26. Rab1 {[%emt 0:02:32] Weighted Error Value: White=0.20 (precise) /Black=0.24 (precise)} ({Better is} 26. Qxa7 $14 Rb2 27. f4) 1/2-1/2

[Event "US Masters 2022"]
[Site "Charlotte"]
[Date "2022.11.25"]
[Round "4.13"]
[White "Macieja, Bartlomiej"]
[Black "Petenyi, Tamas"]
[Result "1-0"]
[ECO "D02"]
[WhiteElo "2514"]
[BlackElo "2410"]
[Annotator "TA"]
[PlyCount "55"]
[EventDate "2022.11.23"]
[EventType "swiss"]
[EventCountry "USA"]
[SourceTitle "playchess.com"]
[Source "ChessBase"]
[SourceQuality "1"]
[TimeControl "5400+30"]

{[%evp 12,55,22,20,38,35,40,43,68,63,102,117,134,125,140,119,159,152,156,158,165,144,246,257,262,235,257,251,299,283,358,336,483,356,369,359,500,500,508,505,514,514,641,656,789,729]} 1. Nf3 {[%emt 0:00:01]} Nc6 {[%emt 0:04:24]} 2. d4 {[%emt 0:00:08]} d5 {[%emt 0:00:05]} 3. Bf4 {[%emt 0:00:04]} Bg4 {[%emt 0:01:08]} 4. e3 {[%emt 0:00:06]} e6 {[%emt 0:00:44]} 5. c4 {[%emt 0:00:03]} Bd6 {[%emt 0:02:18]} 6. Bg3 {[%emt 0:00:02]} Nf6 {[%emt 0:08:53]} 7. Nc3 {[%emt 0:00:09]} Ne4 {[%emt 0:02:30] D02: 1 d4 d5 2 Nf3 sidelines, including 2...Nf6 3 g3 and 2...Nf6 3 Bf4.} 8. cxd5 {[%emt 0:12:28]} exd5 {[%emt 0:02:58]} 9. Qb3 {[%emt 0:00:04] [#]} O-O $146 {[%emt 0:09:04] White is slightly better.} ({Predecessor:} 9... Bxg3 10. hxg3 Nxc3 11. bxc3 Na5 12. Qb5+ c6 13. Qb4 b6 14. Bd3 Bxf3 15. gxf3 Qf6 {0-1 (50) Pjatelin,D (2089)-Starkov,S (2221) Kemerovo 2010}) 10. Bxd6 {[%emt 0:17:07]} Nxd6 {[%emt 0:21:38]} 11. Qxd5 {[%emt 0:00:44]} Nb4 {[%emt 0:05:36]} 12. Qb3 {[%emt 0:00:37]} a5 {[%emt 0:01:26]} 13. a3 {[%emt 0:13:18]} Bxf3 {[%emt 0:00:49]} 14. gxf3 {[%emt 0:00:07]} ({But not} 14. axb4 $6 axb4 15. Rxa8 Qxa8 16. gxf3 (16. Qxb4 Qa1+ 17. Kd2 Ne4+ 18. Kc2 Nxf2 $11) 16... bxc3 17. Qxc3 Qa1+ 18. Kd2 Ra8 $11) 14... Nc6 {[%emt 0:00:06]} 15. Rg1 {[%emt 0:00:57][%cal Bh1g1,Bg1g2,Bg2g4][%mdl 32] White is more active.} Qh4 {[%emt 0:05:41]} 16. Rg2 {[%emt 0:05:30]} Nxd4 {[%emt 0:06:20]} (16... Ne7 $16 {might work better.} 17. O-O-O g6) 17. exd4 $18 {[%emt 0:00:40]} Rfe8+ {[%emt 0:00:18]} 18. Ne2 {[%emt 0:18:23]} Qxd4 {[%emt 0:04:16]} 19. Rg4 {[%emt 0:01:29] Prevents g6.} Qf6 {[%emt 0:02:06]} 20. O-O-O {[%emt 0:03:30][%cal Be1c1,Bc1b1,Bb1a1][%mdl 32]} Qh6+ {[%emt 0:03:04]} 21. Kb1 {[%emt 0:00:43]} Qxh2 {[%emt 0:00:35]} (21... Rad8 $142 22. Ng3 Qf6) 22. Qc3 {[%emt 0:00:40][%csl Gg4,LRc7,LRg7][%cal Rc3g7] [#]} Qe5 {[%emt 0:07:00]} 23. Qxc7 {[%emt 0:00:20]} Qf5+ {[%emt 0:00:11]} 24. Ka1 {[%emt 0:03:47] White is clearly winning.} Nb5 {[%emt 0:02:52]} 25. Qf4 {[%emt 0:06:04]} Qxf4 {[%emt 0:02:53]} 26. Nxf4 {[%emt 0:00:26]} Nd4 {[%emt 0:00:06]} 27. Nh5 {[%emt 0:01:26]} Nxf3 {[%emt 0:00:39]} 28. Nf6+ {[%emt 0:02:22] White took control after the opening.   Weighted Error Value: White=0.10 (very precise) /Black=0.44} 1-0

[Event "US Masters 2022"]
[Site "Charlotte"]
[Date "2022.11.25"]
[Round "4.14"]
[White "Williams, Justus"]
[Black "Druska, Juraj"]
[Result "0-1"]
[ECO "A07"]
[WhiteElo "2395"]
[BlackElo "2511"]
[Annotator "TA"]
[PlyCount "112"]
[EventDate "2022.11.23"]
[EventType "swiss"]
[EventCountry "USA"]
[SourceTitle "playchess.com"]
[Source "ChessBase"]
[SourceQuality "1"]
[TimeControl "5400+30"]

{[%evp 13,112,8,16,8,22,0,0,-8,-14,-9,0,-1,0,-12,6,-11,27,0,22,26,44,27,34,34,49,45,38,0,0,-70,-70,-151,-157,-227,-228,-213,-208,-327,-322,-463,-195,-214,-181,-230,-228,-240,-178,-185,-197,-316,-317,-310,-272,-269,-270,-258,-209,-211,-166,-172,-151,-149,-139,-225,-220,-230,-229,-277,-270,-320,-322,-331,-318,-518,-518,-450,-363,-956,-944,-963,-928,-927,-910,-877,-873,-851,-839,-836,0,-739,-697,-745,-710,-618,-577,-12847,-12847,-12847,-12848,-12850,-12848]} 1. Nf3 {[%emt 0:01:21]} d5 {[%emt 0:03:42]} 2. g3 {[%emt 0:00:25]} c6 {[%emt 0:00:07]} 3. Bg2 {[%emt 0:00:18]} Bg4 {[%emt 0:00:05]} 4. h3 {[%emt 0:00:14]} Bh5 {[%emt 0:01:08]} 5. O-O {[%emt 0:01:06]} Nd7 {[%emt 0:00:08]} 6. d3 {[%emt 0:01:10]} Ngf6 {[%emt 0:01:33]} 7. Nbd2 {[%emt 0:01:46] Recently 7.c4 got a lot of attention.} e5 {[%emt 0:00:20]} 8. c4 {[%emt 0:02:07] A07: Réti Opening: New York and Capablanca Systems.} Be7 {[%emt 0:08:44]} 9. Nh4 {[%emt 0:01:59] [#]} O-O $146 {[%emt 0:03:12]} ({Predecessor:} 9... dxc4 10. Nxc4 O-O 11. a3 Nd5 12. Nf5 Bf6 13. Ncd6 Qb6 14. Qc2 Bg6 15. Bd2 Ne7 {0-1 (36) Gierse,H (1945)-Landscheidt,H (1952) Ruhrgebiet 2004}) 10. Nf5 {[%emt 0:02:05] The position is equal.} Re8 {[%emt 0:01:55]} 11. cxd5 {[%emt 0:05:44]} Nxd5 {[%emt 0:02:44]} (11... cxd5 {simplifies} 12. Nf3 Bf8 13. d4 e4) 12. Nc4 {[%emt 0:03:34]} Qc7 {[%emt 0:13:54]} 13. Nxe7+ {[%emt 0:04:01]} Rxe7 {[%emt 0:00:02]} 14. Bd2 {[%emt 0:03:15]} N7f6 {[%emt 0:06:21]} 15. Qc2 {[%emt 0:06:20]} e4 {[%emt 0:14:08]} 16. dxe4 {[%emt 0:14:57]} (16. Bxe4 Nxe4 17. dxe4 Bg6 $17) 16... Bg6 $1 {[%emt 0:01:06][%cal Rg6e4]} 17. f3 {[%emt 0:05:31]} ({Weaker is} 17. Ba5 b6 18. Be1 Bxe4 19. Bxe4 Nxe4 $17) 17... Qxg3 {[%emt 0:00:11][%cal Of6e4]} 18. Qc1 {[%emt 0:00:15]} Nb6 {[%emt 0:12:29]} 19. Bf4 {[%emt 0:02:34]} Qh4 {[%emt 0:00:02]} 20. Nxb6 {[%emt 0:01:28]} axb6 {[%emt 0:00:08]} 21. e5 {[%emt 0:01:57]} ({White should play} 21. Bg5 $11 Qg3 22. Bf4) 21... Nh5 $1 $15 {[%emt 0:07:47] Black has more active pieces. White is now going downhill.} 22. Bg5 {[%emt 0:00:16] [#]} (22. Bh2 $1 $15) 22... Qg3 $1 $36 {[%emt 0:00:31][%mdl 2048] Keeping White busy.} ({Don't do} 22... Qd4+ 23. e3 Qxe5 24. Bxe7 Qxe7 25. Qd2 $14) 23. Rf2 {[%emt 0:07:15]} (23. Bxe7 $2 {perishes.} Nf4 $19) (23. e4 $17 Rxe5 24. Be3) 23... Rxe5 $19 {[%emt 0:02:03]} 24. f4 {[%emt 0:00:41] [#]} Rc5 {[%emt 0:00:18]} 25. Qd2 {[%emt 0:02:13]} (25. Qxc5 $142 bxc5 26. Rf3) 25... Be4 {[%emt 0:01:08]} 26. Qd4 {[%emt 0:02:51]} (26. Bh4 $142 Qxh4 27. Bxe4) 26... Rxg5 {[%emt 0:11:47]} (26... f5 $142 {And now ...h6 would win.} 27. Qd6 h6 28. Bxh6 gxh6 29. Qxh6 Ng7) 27. Qxe4 {[%emt 0:00:43]} Rga5 {[%emt 0:00:18][%cal Bg5a5,Ba5a3,Ba3a2][%mdl 32]} 28. b4 {[%emt 0:04:59]} (28. e3 $142) 28... Ra3 {[%emt 0:02:43]} (28... Rxa2 $2 29. Rxa2 Rd8 30. Rf3 Qe1+ 31. Kh2 $18) 29. Rd1 {[%emt 0:02:10]} Rxa2 {[%emt 0:02:01]} 30. Qe5 {[%emt 0:01:05]} g6 {[%emt 0:02:59]} 31. b5 {[%emt 0:00:25]} (31. Rf3 $142 Qh4 32. f5) 31... R2a3 {[%emt 0:00:40]} 32. Rdf1 {[%emt 0:06:05]} Ng7 {[%emt 0:01:40]} 33. Rf3 {[%emt 0:04:58]} Rxf3 {[%emt 0:00:01]} 34. Rxf3 {[%emt 0:00:06]} Qe1+ {[%emt 0:00:23]} 35. Rf1 {[%emt 0:00:02]} Qa5 {[%emt 0:00:09]} 36. bxc6 {[%emt 0:00:11]} Qxe5 {[%emt 0:00:13]} 37. fxe5 {[%emt 0:00:05]} bxc6 {[%emt 0:00:02]} 38. Bxc6 {[%emt 0:00:15][%mdl 4096] Endgame KRB-KRN} (38. Rb1 $17 {is a better defense.}) 38... Ra5 {[%emt 0:00:15]} 39. e4 {[%emt 0:00:25]} Rxe5 {[%emt 0:00:37]} 40. Bd5 {[%emt 0:00:07]} Ne6 {[%emt 0:00:14]} 41. Kg2 {[%emt 0:02:14]} g5 {[%emt 0:02:37] Threatens to win with ...Nf4+.} 42. Kg3 {[%emt 0:00:03]} Nf4 {[%emt 0:00:19]} 43. Rd1 {[%emt 0:02:18]} (43. Bb7 {was called for.}) 43... Nxd5 {[%emt 0:00:40]} 44. exd5 {[%emt 0:00:02] KR-KR} Kf8 {[%emt 0:00:16] Hoping for ...b5.} 45. d6 $2 {[%emt 0:00:23]} (45. Kf3) 45... Ke8 {[%emt 0:00:06]} 46. d7+ {[%emt 0:00:14]} Kd8 {[%emt 0:00:01]} 47. Kg4 {[%emt 0:00:09]} h6 {[%emt 0:00:28]} 48. Rd6 {[%emt 0:01:17]} Re6 {[%emt 0:00:06]} 49. Rd5 {[%emt 0:00:07]} Re4+ {[%emt 0:00:22]} 50. Kf5 {[%emt 0:00:47]} Re6 {[%emt 0:00:05]} 51. Kg4 $1 {[%emt 0:00:49]} Rf6 {[%emt 0:00:55] Black is clearly winning.} 52. Kh5 {[%emt 0:00:33]} Rc6 {[%emt 0:00:06]} 53. Kg4 {[%emt 0:00:09]} f5+ {[%emt 0:00:22]} 54. Kxf5 {[%emt 0:00:26]} Rc5 {[%emt 0:00:14]} 55. Rxc5 {[%emt 0:00:01]} bxc5 {[%emt 0:00:03]} 56. Ke5 {[%emt 0:00:20]} h5 {[%emt 0:00:47] Weighted Error Value: White=0.37/Black=0.21 (precise)} 0-1

[Event "US Masters 2022"]
[Site "Charlotte"]
[Date "2022.11.25"]
[Round "4.15"]
[White "Balakrishnan, Praveen"]
[Black "Siddharth, Jagadeesh"]
[Result "1/2-1/2"]
[ECO "A20"]
[WhiteElo "2510"]
[BlackElo "2407"]
[Annotator "TA"]
[PlyCount "44"]
[EventDate "2022.11.23"]
[EventType "swiss"]
[EventCountry "USA"]
[SourceTitle "playchess.com"]
[Source "ChessBase"]
[SourceQuality "1"]
[TimeControl "5400+30"]

{[%evp 15,44,-4,-4,-8,-1,-21,-27,-26,-25,-30,-37,-31,-11,-30,-22,-39,-35,-61,-66,-60,-59,-76,-73,-66,-46,-41,-39,-54,-40,-64,-37]} 1. c4 {[%emt 0:12:11]} e5 {[%emt 1:31:00]} 2. g3 {[%emt 0:00:22]} Nf6 {[%emt 0:00:00]} 3. Bg2 {[%emt 0:00:31]} c6 {[%emt 0:00:00]} 4. Nf3 {[%emt 0:03:39]} e4 {[%emt 0:00:00]} 5. Nd4 {[%emt 0:00:09][%cal Bf3d4,Bd4c2,Bc2e3][%mdl 32]} d5 {[%emt 0:00:00]} 6. cxd5 {[%emt 0:01:08]} Qxd5 {[%emt 0:00:00]} 7. Nc2 {[%emt 0:01:53]} Qh5 {[%emt 0:00:00]} 8. h3 {[%emt 0:01:46]} Qg6 {[%emt 0:00:00]} 9. Nc3 {[%emt 0:04:05] A20: English Opening: 1...e5.} Bd6 {[%emt 0:00:00]} 10. Ne3 {[%emt 0:07:58]} O-O {[%emt 0:00:00]} 11. d3 {[%emt 0:14:32] Black has an edge.} exd3 {[%emt 0:00:00]} 12. Qxd3 {[%emt 0:01:35]} Qxd3 {[%emt 0:00:00]} 13. exd3 {[%emt 0:00:06]} Na6 {[%emt 0:00:00][%cal Bb8a6,Ba6b4,Bb4d5][%mdl 32]} 14. O-O {[%emt 0:14:31]} (14. d4 {simplifies} Nc7 15. d5 cxd5 16. Nexd5 Ncxd5 17. Nxd5 Nxd5 18. Bxd5 Rd8 19. Bg2) 14... Be6 {[%emt 0:00:00] [#]} 15. Rd1 $146 {[%emt 0:04:55]} ({Predecessor:} 15. d4 Nc7 16. Rd1 Rfd8 17. d5 cxd5 18. Nexd5 Nfxd5 19. Nxd5 Nxd5 20. Bxd5 Be5 21. Bf3 Rxd1+ 22. Bxd1 {½-½ (82) Trippold,D (2067)-Vidic,T (2176) Stary Smokovec 2018}) 15... Rad8 {[%emt 0:00:00]} 16. b3 {[%emt 0:07:41]} Be5 {[%emt 0:00:00]} 17. Bb2 {[%emt 0:00:28]} Nb4 {[%emt 0:00:00] Prevents Nc2.} 18. Na4 {[%emt 0:03:36]} Bxb2 {[%emt 0:00:00]} ({Much less strong is} 18... Nxd3 {[#]} 19. Rxd3 $1 {[%mdl 512]} Rxd3 20. Bxe5 $16) 19. Nxb2 {[%emt 0:00:07]} Rd7 {[%emt 0:00:00] Black is slightly better.} 20. a3 {[%emt 0:04:46]} Nbd5 {[%emt 0:00:00]} 21. b4 {[%emt 0:04:42]} Rfd8 {[%emt 0:00:00]} 22. Rdc1 {[%emt 0:01:36]} g6 {[%emt 0:00:00] Weighted Error Value: White=0.11 (very precise) /Black=0.05 (flawless)} 1/2-1/2